Cogmind - Beta 14 @@@ ROGUE MODE // 2025.03.03 @ 21:55:08 Player: w0rldd3str0y3r Result: Destroyed by as-78138 with Assembled Blade Performance ------------- Evolutions (0) 0 Regions Visited (3) 600 Robots Destroyed (18) 90 Value Destroyed (361) 361 Prototype IDs (4) 80 Alien Tech Used (0) 0 Bonus (300) 300 TOTAL SCORE: 1431 Bonus ------- Aligned with FarCom 300 Cogmind --------- Core Integrity 0/250 Matter 210/300 Energy 265/265 System Corruption 9% Temperature Hot (240) Movement Treading (240) Ox1 Location -10/Exiles Parts ------- > --- POWER (1) -------- Improved Ion Engine > --- PROPULSION (2) --- Light Treads > --- UTILITY (2) ------ Large Storage Unit > --- WEAPON (2) ------- Heavy Assault Rifle > --- INVENTORY (15) --- Improved Ion Engine Light Treads Light Treads Light Treads Light Treads Cooling System Cooling System Cooling System Structural Scanner Targeting Computer Light Armor Plating Beam Cannon Improved Light Cannon Welding Torch Peak State ------------ > --- POWER ------------ Light Nuclear Core > --- PROPULSION ------- Light Treads Light Treads > --- UTILITY ---------- Cooling System Small Battery > --- WEAPON ----------- Improved Light Cannon Improved Light Cannon > --- INVENTORY -------- Light Treads Light Treads Cooling System Trap Extractor Improved Light Cannon [Rating: 12] Favorites ----------- Power Improved Ion Engine Engine Improved Ion Engine Power Core Light Nuclear Core Propulsion Light Treads Treads Light Treads Utility Large Storage Unit Device Cooling System Storage Large Storage Unit Processor Targeting Computer Protection Propulsion Shielding Weapon Improved Light Cannon Energy Cannon Beam Cannon Ballistic Gun Heavy Assault Rifle Ballistic Cannon Improved Light Cannon Build | -11 -10 -10 -10 ------- Run | Yrd Mat Min Exi Slots Evolved . | . . . . Power . | . . . . Propulsion . | . . . . Utility . | . . . . Weapon . | . . . . Parts Attached 32 | . 21 10 1 Power 5 | . 2 3 . Engine 4 | . 1 3 . Core 1 | . 1 . . Reactor . | . . . . Propulsion 14 | . 9 4 1 Treads 14 | . 9 4 1 Leg . | . . . . Wheel . | . . . . Hover . | . . . . Flight . | . . . . Utility 9 | . 8 1 . Device 5 | . 5 . . Storage 2 | . 2 . . Processor 1 | . . 1 . Hackware . | . . . . Protection 1 | . 1 . . Artifact . | . . . . Weapon 4 | . 2 2 . Energy Gun . | . . . . Energy Cannon 1 | . . 1 . Ballistic Gun 1 | . . 1 . Ballistic Cannon 2 | . 2 . . Launcher . | . . . . Special Weapon . | . . . . Impact Weapon . | . . . . Slashing Weapon . | . . . . Piercing Weapon . | . . . . Special Melee Weapon . | . . . . Unidentified Prototypes . | . . . . Parts Lost 4 | . . . 4 Power . | . . . . Propulsion 2 | . . . 2 Utility 1 | . . . 1 Weapon 1 | . . . 1 Highest Loss Streak 4 | . . . 4 To Critical Strikes . | . . . . Average Slot Usage (%) 96 | . 91 100 99 Engine 9 | . 2 13 14 Core 4 | . 9 . . Treads 26 | . 25 28 27 Device 4 | . 10 . . Storage 14 | . 14 14 14 Processor 7 | . . 13 14 Protection 1 | . 2 . . Energy Cannon 7 | . . 13 14 Ballistic Gun 7 | . . 13 14 Ballistic Cannon 11 | . 25 1 . Peak Build Rating 12 | . 12 12 11 Average Rating 10 | . 10 11 10 On Entrance 5 | . . 12 11 Naked Turns 52 | . 52 . . Heaviest Build 34 | . 34 34 33 Greatest Support 40 | 3 40 40 40 Greatest Overweight (x) 2 | . 2 1 . Average Overweight (x) . | . . . . Largest Inventory Capacity 15 | 5 15 15 15 Average Capacity 12 | 5 8 15 15 Most Carried 15 | . 15 15 15 Average Carried 12 | . 8 14 14 Final Capacity 15 | 5 15 15 15 Final Carried 15 | . 15 15 14 Class Distribution -------------------- 56% | Scavenger-Mutant 43% | Mutant Dominant Class ---------------- Mutant | -10/Materials Scavenger-Mutant | -10/Mines Scavenger-Mutant | -10/Exiles Resources | -11 -10 -10 -10 ----------- Run | Yrd Mat Min Exi Matter Collected 783 | 146 500 137 . Remotely . | . . . . Salvage Created 426 | . 378 37 11 Parts 26 | . 24 2 . Haulers Intercepted 2 | . 2 . . Recyclers Shooed 1 | . 1 . . Parts Field Recycled . | . . . . Retrieved Matter . | . . . . Parts Self-Destructed . | . . . . Prevented . | . . . . Kills | -11 -10 -10 -10 ------- Run | Yrd Mat Min Exi Combat Hostiles Destroyed 13 | . 9 3 1 Guns 1 | . . 1 . Cannons 12 | . 9 2 1 Classes Destroyed 7 | . 6 . 1 Hauler 2 | . 2 . . Recycler 1 | . 1 . . Operator 1 | . 1 . . Watcher 2 | . 2 . . Swarmer 6 | . 3 3 . Grunt 6 | . 6 . . Assembled 1 | . . . 1 Best Kill Streak 5 | . 5 3 1 Combat Bots Only 4 | . 4 3 1 Max Kills in Single Turn 1 | . 1 1 1 Gunslinging . | . . . . Exploded . | . . . . Melee . | . . . . Uniques/NPCs Destroyed . | . . . . Combat | -11 -10 -10 -10 -------- Run | Yrd Mat Min Exi Hostile Shots Fired 117 | . 55 23 39 Missed 32 | . 14 8 10 Damage Taken 1152 | . 537 110 505 Core 277 | . 115 23 139 Absorbed by Shields . | . . . . Core Remaining (%) 100 | 100 . . . Volleys Fired 56 | . 42 8 6 Largest 2 | . 2 2 2 Hottest 83 | . 78 83 83 Shots Fired 95 | . 64 18 13 Gun 14 | . . 8 6 Cannon 81 | . 64 10 7 Launcher . | . . . . Special . | . . . . Kinetic 80 | . 64 10 6 Thermal 15 | . . 8 7 Explosive . | . . . . Electromagnetic . | . . . . Robot Hit Streak 8 | . 8 7 3 Robot Miss Streak 4 | . 4 4 4 Penetration Max . | . . . . Secondary Targets . | . . . . Shots Hit Robots 42 | . 29 9 4 Core Hits 28 | . 21 3 4 Critical Kills . | . . . . Critical Parts Destroyed 1 | . . 1 . Critical Strikes 3 | . 1 2 . Destroy 1 | . . 1 . Blast 2 | . 1 1 . Melee Attacks . | . . . . Impact . | . . . . Slashing . | . . . . Piercing . | . . . . Sneak Attacks . | . . . . Combat Hostiles . | . . . . Follow-up Attacks . | . . . . Damage Inflicted 908 | . 665 160 83 Guns 96 | . . 67 29 Cannons 767 | . 625 88 54 Explosions . | . . . . Melee . | . . . . Ramming 45 | . 40 5 . Kinetic 739 | . 625 85 29 Thermal 124 | . . 70 54 Explosive . | . . . . Electromagnetic . | . . . . Impact . | . . . . Slashing . | . . . . Piercing . | . . . . Highest Corruption 9 | . 4 4 9 Average Corruption 3 | . 2 4 4 Corruption Purged . | . . . . Corruption Blocked . | . . . . Effects 62 | . 20 36 6 Message Errors 14 | . 5 8 1 Matter Fused 13 | . 5 8 . Heat Flow Errors 7 | . 4 3 . Energy Discharges 12 | . 4 8 . Data Loss (minor) 7 | . 2 3 2 Data Loss (major) 3 | . . 3 . Misfires 4 | . . 2 2 Alerts 1 | . . 1 . Weapon Failures 1 | . . . 1 Overload Shots . | . . . . Overflow Damage . | . . . . Projectiles . | . . . . Explosions . | . . . . Melee . | . . . . Knockbacks 4 | . 4 . . Impact . | . . . . Kinetic 4 | . 4 . . Secondary . | . . . . Self-Inflicted Damage 10 | . 10 . . Shots . | . . . . Rammed 10 | . 9 1 . Targets Rammed 10 | . 9 1 . Kicked . | . . . . Crushed . | . . . . Highest Temperature 254 | . 226 254 240 Average Temperature 72 | . 64 75 107 Received Heat Transfer 225 | . 105 . 120 Siege Activations . | . . . . Robots Corrupted . | . . . . Combat Hostiles . | . . . . Parts Fried . | . . . . Impact Corruptions . | . . . . Robots Melted . | . . . . Combat Hostiles . | . . . . Parts Melted . | . . . . Heat Transferred 259 | . . 148 111 Parts Sabotaged . | . . . . Parts Stolen . | . . . . Parts Stripped . | . . . . Power Chain Reactions . | . . . . Alert | -11 -10 -10 -10 ------- Run | Yrd Mat Min Exi Peak Influence 140 | . 140 85 . Initial . | . . . . Average 35 | . 69 8 . Maximum Alert Level . | . . . . Low Security (%) 100 | 100 100 100 . Level 1 . | . . . . Level 2 . | . . . . Level 3 . | . . . . Level 4 . | . . . . Level 5 . | . . . . High Security . | . . . . Max Security . | . . . . Squads Dispatched 1 | . 1 . . Investigation 1 | . 1 . . Extermination . | . . . . Reinforcement . | . . . . Assault . | . . . . Garrison . | . . . . Intercept . | . . . . Searches Triggered . | . . . . Construction Impeded . | . . . . Haulers Reinforced . | . . . . Active Scanning Responses . | . . . . Cargo Convoy Interrupts . | . . . . Stealth | -11 -10 -10 -10 --------- Run | Yrd Mat Min Exi Distress Signals 1 | . 1 . . Communications Jammed . | . . . . Distress Signals . | . . . . Times Spotted 24 | . 14 4 6 Peak Tracking Total 9 | . 5 3 9 Tactical Retreats . | . . . . Traps | -11 -10 -10 -10 ------- Run | Yrd Mat Min Exi Traps Triggered 5 | . 5 . . Indirectly . | . . . . Trap Hack Attempts . | . . . . Triggered . | . . . . Disarmed . | . . . . Reprogrammed . | . . . . Reused . | . . . . Traps Extracted . | . . . . Installed . | . . . . Triggered . | . . . . Machines | -11 -10 -10 -10 ---------- Run | Yrd Mat Min Exi Machines Disabled 1 | . . . 1 Max in Single Turn 1 | . . . 1 Machines Repaired . | . . . . Machines Dismantled . | . . . . Machines Sabotaged . | . . . . Overloaded Fab Kills . | . . . . Hacking | -11 -10 -10 -10 --------- Run | Yrd Mat Min Exi Machines Accessed 12 | . 9 2 1 Terminals 8 | . 7 1 . Fabricators . | . . . . Repair Stations . | . . . . Recycling Units 2 | . 2 . . Scanalyzers . | . . . . Garrison Access . | . . . . Total Hacks 28 | . 25 2 1 Successful 13 | . 10 2 1 Failed 15 | . 15 . . Catastrophic 4 | . 4 . . Database Lockouts . | . . . . Manual 5 | . 4 1 . Terminals 23 | . 22 1 . Fabricators . | . . . . Repair Stations . | . . . . Recycling Units 3 | . 3 . . Scanalyzers . | . . . . Garrison Access . | . . . . Terminal Hacks 11 | . 8 2 1 Record 1 | . . . 1 Robot Analysis 1 | . 1 . . Prototype ID Bank 2 | . 2 . . Open Door 1 | . . 1 . Branch Access Points 1 | . 1 . . Emergency Access Points 1 | . 1 . . Terminal Index 1 | . 1 . . Registered Components 1 | . 1 . . Zone Layout 2 | . 1 1 . Fabricator Hacks . | . . . . Repair Station Hacks . | . . . . Recycling Unit Hacks 2 | . 2 . . Report Inventory 1 | . 1 . . Retrieve Components 1 | . 1 . . Scanalyzer . | . . . . Garrison Access Hacks . | . . . . Unauthorized Hacks . | . . . . Terminals . | . . . . Fabricators . | . . . . Repair Stations . | . . . . Recycling Units . | . . . . Scanalyzers . | . . . . Garrison Access . | . . . . Data Cores Recovered 1 | . 1 . . Used . | . . . . Hacking Detections 6 | . 6 . . Full Trace Events 4 | . 4 . . Feedback Events . | . . . . Feedback Blocked . | . . . . Robot Schematics Acquired . | . . . . Robots Built . | . . . . Authchips . | . . . . Time . | . . . . Total Robot Build Rating . | . . . . Part Schematics Acquired . | . . . . Parts Built . | . . . . Authchips . | . . . . Time . | . . . . Total Part Build Rating . | . . . . Parts Repaired . | . . . . Time . | . . . . Parts Recycled . | . . . . Recycled Matter . | . . . . Retrieved Matter . | . . . . Retrieved Components 10 | . 10 . . Parts Scanalyzed . | . . . . Part Schematics Acquired . | . . . . Parts Damaged . | . . . . Bothacking | -11 -10 -10 -10 ------------ Run | Yrd Mat Min Exi Used RIF Installer . | . . . . Robots Hacked . | . . . . Non-combat . | . . . . Combat . | . . . . Robot Hacks Applied . | . . . . Relay Couplers Released . | . . . . Fabnet Peak Effective % . | . . . . Robots Rewired . | . . . . Allies Hacked . | . . . . Hacks Repelled . | . . . . Allies | -11 -10 -10 -10 -------- Run | Yrd Mat Min Exi Total Allies . | . . . . Largest Group . | . . . . Highest-Rated Group . | . . . . Highest-Rated Ally . | . . . . Total Orders . | . . . . Ally Attacks . | . . . . Total Damage . | . . . . Kills . | . . . . Allies Corrupted . | . . . . Allies Melted . | . . . . Intel | -11 -10 -10 -10 ------- Run | Yrd Mat Min Exi Robot Analysis Total 1 | . 1 . . Derelict Logs Recovered 1 | . . 1 . Drone Launches . | . . . . Drone Recoveries . | . . . . Exploration | -11 -10 -10 -10 ------------- Run | Yrd Mat Min Exi Turns Passed 3482 | 14 1429 1795 244 Spaces Moved 2153 | 29 894 1089 141 Core 220 | 29 191 . . Treads 1933 | . 703 1089 141 Legs . | . . . . Wheels . | . . . . Hover . | . . . . Flight . | . . . . Fastest Speed 50 | 50 50 160 160 Average Speed 148 | 50 136 160 160 Slowest Speed 240 | 50 240 240 160 Overloaded Moves . | . . . . Propulsion Burnouts . | . . . . Robots Hopped . | . . . . Cave-ins Triggered . | . . . . Exploration Rate (%) 60 | 2 92 100 49 Regions Visited 3 Branch Regions 2 Pre-discovered Areas 2 | . . 1 1 Known Exits Taken 1 | . 1 . . Unknown Exits Taken 2 | 1 . 1 . Scrap Searched 2 | . . 2 . Spaces Dug . | . . . . Terrain Destroyed 1 | . 1 . . Melee . | . . . . Projectile 1 | . 1 . . AOE . | . . . . Terrain Rammed 2 | . 2 . . Walls Destroyed . | . . . . Machines Disabled . | . . . . Actions | -11 -10 -10 -10 --------- Run | Yrd Mat Min Exi Total 2331 | 28 1029 1126 148 Wait 30 | . 26 4 . Move 2150 | 28 893 1088 141 Hop . | . . . . Pick Up 27 | . 23 4 . Fast Attach 14 | . 10 4 . Attach 6 | . 5 . 1 Detach 1 | . . 1 . Swap 12 | . 6 6 . Drop 23 | . 13 10 . Fire 56 | . 42 8 6 Melee . | . . . . Ram 2 | . 2 . . Kick . | . . . . Crush 10 | . 9 1 . Escape Stasis . | . . . . Rewire . | . . . . Trap . | . . . . Miscellaneous . | . . . . Route ------- -11/Scrapyard -10/Materials (discovered 6 exits: [*Mat x3] / *Min x2 / [*Sub]) -10/Mines (discovered 4 exits: [*Mat x2] / *Exi / [*Sub]) -10/Exiles (discovered 1 exit: [*Min]) History --------- Turn | Location | Event 2 | -11/Scrapyard | Met Revision 17 3 | -11/Scrapyard | Discovered new exit (range 15) 15 | -11/Scrapyard | Entered Materials 104 | -10/Materials | Discovered new exit (range 16) 283 | -10/Materials | Discovered new exit (range 16) 330 | -10/Materials | Build established: Mutant 702 | -10/Materials | Discovered new exit (range 8) 835 | -10/Materials | Discovered new exit (range 13) 848 | -10/Materials | Discovered new exit (range 15) 1029 | -10/Materials | Identified exit to Mines 1262 | -10/Materials | Discovered new exit (range 12) 1444 | -10/Materials | Entered Mines 1457 | -10/Mines | Learned location of Zion (-6) 1467 | -10/Mines | Joined a pair of Derelicts in attacking an 0b10 outpost 1580 | -10/Mines | Found the Drone Emporium 1693 | -10/Mines | Core integrity fell below 50% 1780 | -10/Mines | Build established: Scavenger-Mutant 1807 | -10/Mines | Discovered new exit (range 7) 2118 | -10/Mines | Discovered new exit (range 13) 2175 | -10/Mines | Found a damaged Exp. Sensor Array with a note attached 2908 | -10/Mines | Discovered new exit (range 6) 3231 | -10/Mines | Deemed a non-threat by the Exiles lab entrance 3231 | -10/Mines | Discovered new exit (range 5) 3239 | -10/Mines | Entered Exiles 3260 | -10/Exiles | Discovered new exit (range 15) 3279 | -10/Exiles | Met 8R-AWN 3305 | -10/Exiles | Met EX-HEX 3367 | -10/Exiles | Met EX-DEC 3406 | -10/Exiles | Met EX-BIN 3433 | -10/Exiles | Aligned with FarCom system 3435 | -10/Exiles | Given EX-Vault access code 3446 | -10/Exiles | Attacked by the Exiles 3476 | -10/Exiles | Core integrity fell below 20% 3483 | -10/Exiles | Destroyed by as-78138 with Assembled Blade Last Messages --------------- handling other tasks for us. I haven't taken inventory for a while and I'm not sure what's in there now, but if there are more than one of the same prototype you can choose to take all of those and it just counts as your one! 03445_ System corrupted: FCS attempts to trigger Hvy. Assault Rifle. 03445_ System corrupted: Hvy. Assault Rifle misfires. 03445_ BIN's Workstation disabled. 03446_ EXILES: Hostile robot within lab perimeter. Defensive protocols time, folks! 03448_ EX-BIN: "I just want to science!" 03463_ System corrupted: FCS attempts to trigger Beam Cannon. 03463_ System corrupted: Beam Cannon misfires. 03469_ Lgt. Treads destroyed. 03472_ as-67768 destroyed. 03478_ System corrupted: Hvy. Assault Rifle jammed. 03480_ Targeting Computer destroyed. 03480_ System corrupted by crushing effect (+5). 03480_ Critical hit (Burn: +80). 03481_ Beam Cannon destroyed. 03483_ Lgt. Treads destroyed. Map ----- +----------------------------------------------------+ | | | | | | | | | | | | | | | | | | | | | | | | | | | | | ?????????????????????????????????????????????????? | | ?????????????????????????????????????????????????? | | ?????????????????????????????????????????????????? | | ?????????????????????????????????????????????????? | | ?????????????????????????????????????????????????? | | ????????????????????????#######??????????????????? | | ????????????????????????X #??????????????????? | | ????????????????????????# #??????????????????? | | ????????????????????????# #??????????????????? | | ????????????????????????# #???##?????????????? | | ????????????????????????# #??""""????????????? | | ????????????????????????#@ ## """???????????? | | ????????????????????????#aa X""???????????? | | ????????????????????????# ## """???????????? | | ??????????????????####??# a #?????"????????????? | | ?????????????????""""""?# #??????????????????? | | ?????????????????"""" ## #??????????????????? | | ????????????????#""X" #??????????????????? | | ????????????????#" #??????????????????? | | ????????????????#" ## #??????????????????? | | ????????????????#""""""?# a #?#########????????? | | ????????????????##"###??# a #?#"""""""#????????? | | ????????????????????????# #?#"""""""#????????? | | ????????????????????????# #?#"""""""#????????? | | ???????????????????????## ###"" """"#????????? | | ???????????????????????#" """"#????????? | | ???????????????????????#" """#????????? | | ???????????????????????#" """#????????? | | ???????????????????????#" """#????????? | | ??????????####?????????#" """#????????? | | ?????????? """????????#" """#????????? | | ??????????" """#???????## """"????????? | | ??????????" #????????# """#????????? | | ?????????"" #????????#" X" """"????????? | | ?????????"" "#????????#" """ #????????? | | ????????? ""?????????#" """""""""#????????? | +----------------------------------------------------+ Best States ------------- Heat Dissipation 47 Energy Generation 14 Energy Capacity 350 Matter Stores 300 Matter Capacity 300 Sight Range 16 Robot Scan Range 14 Terrain Scan Density 10 Propulsion Shielding 33 Evasion (%) 50 Targeting Accuracy 5 Recoil Reduction 2 Trap Extractor Capacity 4 Item Schematics ----------------- None Robot Schematics ------------------ None Fabricated ------------ Nothing Alien Tech Used ----------------- None Achievements -------------- None Challenges ------------ None Game ------ Seed ShrapnelWeldingScythe Manual? 0 Play Time 00:21:57 Cumulative 45.4 hours Start 2025.03.03 @ 21:28:03 End 2025.03.03 @ 21:55:08 Sessions 1 Manual Loads 0 Difficulty Rogue Special Mode None Game No. 54 Rogue 54 Adventurer 0 Explorer 0 Win Type - Total 0 Types 0/0/0/0/0/0/0/0/0 Lore% 32 Gallery% 39 Achievement% 30 Wizard Run 0 Options --------- Layout 0 ASCII 1 Keyboard 1 Movement Numpad Keybinds 0 Fullscreen 1 Font 18/CogWide Map View 76x50 Zoom Use 0% Tactical HUD 1 Map Filters NONE Filters NONE Steam 1 RUN: 2b2cc98a-aacc-47e8-aacf-e36804aa6af5